[Event "Titled Tuesday Blitz March 08 Early 2022"]
[White "Estevez Polanco, Leonardo Rafael"]
[Black "Lopez Gracia, Fernando"]
[WhiteFideId "6402798"]
[BlackFideId "2207184"]
[WhiteElo "2088"]
[BlackElo "2429"]
[Result "0-1"]
[Round "02"]
[TimeControl "180+1"]
[Date "2022.03.09"]
[WhiteClock "0:00:51"]
[BlackClock "0:01:07"]

1. e4 {[%clk 0:02:54]}  c5 {[%clk 0:02:57]} 2. Nf3 {[%clk 0:02:54]}  e6 {[%clk 0:02:57]} 3. d4 {[%clk 0:02:54]}  cxd4 {[%clk 0:02:58]} 4. c3 {[%clk 0:02:55]}  Nf6 {[%clk 0:02:58]} 5. Bd3 {[%clk 0:02:54]}  dxc3 {[%clk 0:02:50]} 6. Nxc3 {[%clk 0:02:55]}  d6 {[%clk 0:02:50]} 7. O-O {[%clk 0:02:55]}  Be7 {[%clk 0:02:50]} 8. Qe2 {[%clk 0:02:55]}  a6 {[%clk 0:02:46]} 9. Rd1 {[%clk 0:02:56]}  Qc7 {[%clk 0:02:47]} 10. Bf4 {[%clk 0:02:56]}  Nc6 {[%clk 0:02:46]} 11. Rac1 {[%clk 0:02:57]}  Bd7 {[%clk 0:02:39]} 12. Bb1 {[%clk 0:02:57]}  Rc8 {[%clk 0:02:38]} 13. h3 {[%clk 0:02:42]}  O-O {[%clk 0:02:37]} 14. Nd5 {[%clk 0:02:42]}  exd5 {[%clk 0:02:27]} 15. exd5 {[%clk 0:02:43]}  Rfe8 {[%clk 0:02:22]} 16. dxc6 {[%clk 0:02:41]}  Bxc6 {[%clk 0:02:23]} 17. Nd4 {[%clk 0:02:38]}  Qb6 {[%clk 0:02:16]} 18. Nxc6 {[%clk 0:02:35]}  Rxc6 {[%clk 0:02:14]} 19. Bg5 {[%clk 0:02:29]}  Bf8 {[%clk 0:02:14]} 20. Qd3 {[%clk 0:02:24]}  Ne4 {[%clk 0:02:14]} 21. Be3 {[%clk 0:02:19]}  Qxb2 {[%clk 0:01:51]} 22. Rxc6 {[%clk 0:02:16]}  bxc6 {[%clk 0:01:52]} 23. f3 {[%clk 0:02:15]}  Nf6 {[%clk 0:01:48]} 24. Bd4 {[%clk 0:02:15]}  Qb5 {[%clk 0:01:45]} 25. Bxf6 {[%clk 0:01:48]}  Qxd3 {[%clk 0:01:42]} 26. Bxd3 {[%clk 0:01:49]}  gxf6 {[%clk 0:01:42]} 27. Bxa6 {[%clk 0:01:49]}  d5 {[%clk 0:01:41]} 28. Bb7 {[%clk 0:01:43]}  Re6 {[%clk 0:01:39]} 29. a4 {[%clk 0:01:42]}  d4 {[%clk 0:01:39]} 30. a5 {[%clk 0:01:42]}  Bc5 {[%clk 0:01:31]} 31. a6 {[%clk 0:01:37]}  Re2 {[%clk 0:01:18]} 32. Rc1 {[%clk 0:01:28]}  d3+ {[%clk 0:01:18]} 33. Rxc5 {[%clk 0:01:27]}  d2 {[%clk 0:01:18]} 34. a7 {[%clk 0:00:50]}  d1=Q+ {[%clk 0:01:12]} 35. Kh2 {[%clk 0:00:51]}  Qd6+ {[%clk 0:01:12]} 36. Kg1 {[%clk 0:00:51]}  Qxc5+ {[%clk 0:01:07]} 0-1


[Site "https://www.chess.com"]

[Event "Titled Tuesday Blitz March 08 Early 2022"]
[White "Flis, Pawel"]
[Black "Miszler, Levente"]
[WhiteFideId "1112864"]
[BlackFideId "763276"]
[WhiteElo "1735"]
[BlackElo "1966"]
[Result "0-1"]
[Round "02"]
[TimeControl "180+1"]
[Date "2022.03.09"]
[WhiteClock "0:00:01"]
[BlackClock "0:00:02"]

1. e4 {[%clk 0:03:00]}  e6 {[%clk 0:02:57]} 2. d4 {[%clk 0:02:59]}  d5 {[%clk 0:02:57]} 3. Nd2 {[%clk 0:02:59]}  e5 {[%clk 0:02:56]} 4. exd5 {[%clk 0:02:47]}  Qxd5 {[%clk 0:02:45]} 5. dxe5 {[%clk 0:02:46]}  Qxe5+ {[%clk 0:02:45]} 6. Be2 {[%clk 0:02:46]}  Bc5 {[%clk 0:02:33]} 7. Ngf3 {[%clk 0:02:44]}  Qe7 {[%clk 0:02:33]} 8. O-O {[%clk 0:02:43]}  Nf6 {[%clk 0:02:32]} 9. Bb5+ {[%clk 0:02:32]}  c6 {[%clk 0:02:29]} 10. Re1 {[%clk 0:02:31]}  Be6 {[%clk 0:02:29]} 11. Bc4 {[%clk 0:02:27]}  O-O {[%clk 0:02:27]} 12. Bxe6 {[%clk 0:02:27]}  fxe6 {[%clk 0:02:28]} 13. Nb3 {[%clk 0:02:27]}  Bb6 {[%clk 0:02:27]} 14. Bf4 {[%clk 0:02:21]}  Ng4 {[%clk 0:02:02]} 15. Bd6 {[%clk 0:02:08]}  Bxf2+ {[%clk 0:01:53]} 16. Kh1 {[%clk 0:02:03]}  Qf6 {[%clk 0:01:52]} 17. Bxf8 {[%clk 0:02:02]}  Bxe1 {[%clk 0:01:52]} 18. Qxe1 {[%clk 0:01:49]}  Kxf8 {[%clk 0:01:49]} 19. Rd1 {[%clk 0:01:44]}  Na6 {[%clk 0:01:46]} 20. h3 {[%clk 0:01:43]}  Nh6 {[%clk 0:01:44]} 21. Rd7 {[%clk 0:01:30]}  Rd8 {[%clk 0:01:30]} 22. Rxb7 {[%clk 0:01:23]}  Nf5 {[%clk 0:01:11]} 23. Rxa7 {[%clk 0:01:15]}  Nb8 {[%clk 0:01:04]} 24. Ra8 {[%clk 0:00:56]}  Ne7 {[%clk 0:00:52]} 25. Qe5 {[%clk 0:00:48]}  Qxe5 {[%clk 0:00:44]} 26. Nxe5 {[%clk 0:00:49]}  Nd5 {[%clk 0:00:43]} 27. Nc5 {[%clk 0:00:42]}  Ke7 {[%clk 0:00:41]} 28. Ra7+ {[%clk 0:00:39]}  Kf6 {[%clk 0:00:33]} 29. Ncd3 {[%clk 0:00:37]}  Ne7 {[%clk 0:00:23]} 30. g4 {[%clk 0:00:34]}  h6 {[%clk 0:00:21]} 31. Kg2 {[%clk 0:00:33]}  c5 {[%clk 0:00:21]} 32. c4 {[%clk 0:00:32]}  Nbc6 {[%clk 0:00:20]} 33. Nxc6 {[%clk 0:00:27]}  Nxc6 {[%clk 0:00:21]} 34. Ra3 {[%clk 0:00:24]}  Nd4 {[%clk 0:00:19]} 35. Nxc5 {[%clk 0:00:22]}  Nc2 {[%clk 0:00:19]} 36. Rf3+ {[%clk 0:00:20]}  Ke7 {[%clk 0:00:18]} 37. b3 {[%clk 0:00:20]}  Rd2+ {[%clk 0:00:17]} 38. Rf2 {[%clk 0:00:20]}  Ne1+ {[%clk 0:00:10]} 39. Kg3 {[%clk 0:00:18]}  Rd1 {[%clk 0:00:07]} 40. a4 {[%clk 0:00:15]}  Ra1 {[%clk 0:00:07]} 41. b4 {[%clk 0:00:13]}  Kd6 {[%clk 0:00:07]} 42. Ne4+ {[%clk 0:00:12]}  Ke5 {[%clk 0:00:07]} 43. Re2 {[%clk 0:00:12]}  Ra3+ {[%clk 0:00:07]} 44. Kh2 {[%clk 0:00:07]}  Nf3+ {[%clk 0:00:06]} 45. Kg2 {[%clk 0:00:07]}  Kf4 {[%clk 0:00:06]} 46. Nc5 {[%clk 0:00:05]}  Nh4+ {[%clk 0:00:06]} 47. Kf2 {[%clk 0:00:04]}  Rf3+ {[%clk 0:00:04]} 48. Ke1 {[%clk 0:00:04]}  Rxh3 {[%clk 0:00:03]} 49. Nd3+ {[%clk 0:00:03]}  Rxd3 {[%clk 0:00:03]} 50. a5 {[%clk 0:00:02]}  Nf3+ {[%clk 0:00:03]} 51. Kf2 {[%clk 0:00:01]}  Nd4 {[%clk 0:00:02]} 0-1


[Site "https://www.chess.com"]

[Event "Titled Tuesday Blitz March 08 Early 2022"]
[White "Goldin, Roman"]
[Black "Saravana, Krishnan P."]
[WhiteFideId "2803860"]
[BlackFideId "5018382"]
[WhiteElo "2312"]
[BlackElo "2210"]
[Result "0-1"]
[Round "02"]
[TimeControl "180+1"]
[Date "2022.03.09"]
[WhiteClock "0:00:07"]
[BlackClock "0:00:17"]

1. e4 {[%clk 0:02:58]}  e6 {[%clk 0:02:57]} 2. d4 {[%clk 0:02:57]}  d5 {[%clk 0:02:57]} 3. Nd2 {[%clk 0:02:57]}  h6 {[%clk 0:02:55]} 4. Ngf3 {[%clk 0:02:51]}  Nf6 {[%clk 0:02:55]} 5. Bd3 {[%clk 0:02:50]}  c5 {[%clk 0:02:54]} 6. dxc5 {[%clk 0:02:48]}  Bxc5 {[%clk 0:02:53]} 7. Qe2 {[%clk 0:02:49]}  Nc6 {[%clk 0:02:49]} 8. O-O {[%clk 0:02:46]}  Qc7 {[%clk 0:02:40]} 9. c3 {[%clk 0:02:39]}  Be7 {[%clk 0:02:35]} 10. Re1 {[%clk 0:02:20]}  O-O {[%clk 0:02:26]} 11. e5 {[%clk 0:02:20]}  Nd7 {[%clk 0:02:25]} 12. Bb1 {[%clk 0:02:15]}  Re8 {[%clk 0:02:17]} 13. Qd3 {[%clk 0:02:13]}  Nf8 {[%clk 0:02:15]} 14. Nf1 {[%clk 0:02:06]}  a5 {[%clk 0:01:58]} 15. h4 {[%clk 0:02:04]}  b6 {[%clk 0:01:57]} 16. h5 {[%clk 0:02:02]}  Ba6 {[%clk 0:01:56]} 17. Qe3 {[%clk 0:02:02]}  f5 {[%clk 0:01:44]} 18. N1h2 {[%clk 0:01:35]}  Rad8 {[%clk 0:01:41]} 19. g4 {[%clk 0:01:33]}  d4 {[%clk 0:01:33]} 20. Nxd4 {[%clk 0:01:28]}  Bc5 {[%clk 0:01:31]} 21. gxf5 {[%clk 0:01:21]}  Nxd4 {[%clk 0:01:28]} 22. cxd4 {[%clk 0:01:19]}  Bxd4 {[%clk 0:01:24]} 23. Qg3 {[%clk 0:01:17]}  Bxe5 {[%clk 0:01:02]} 24. f4 {[%clk 0:00:48]}  Bd4+ {[%clk 0:01:01]} 25. Be3 {[%clk 0:00:46]}  Bxb2 {[%clk 0:00:50]} 26. Be4 {[%clk 0:00:40]}  Bxa1 {[%clk 0:00:48]} 27. Rxa1 {[%clk 0:00:39]}  exf5 {[%clk 0:00:48]} 28. Bxf5 {[%clk 0:00:37]}  Qc3 {[%clk 0:00:45]} 29. Re1 {[%clk 0:00:36]}  Bb7 {[%clk 0:00:44]} 30. Ng4 {[%clk 0:00:35]}  Qc6 {[%clk 0:00:42]} 31. Kh2 {[%clk 0:00:30]}  Kh8 {[%clk 0:00:35]} 32. Ne5 {[%clk 0:00:29]}  Qf6 {[%clk 0:00:28]} 33. Bg4 {[%clk 0:00:19]}  Ne6 {[%clk 0:00:22]} 34. f5 {[%clk 0:00:12]}  Ng5 {[%clk 0:00:19]} 35. Bxg5 {[%clk 0:00:11]}  hxg5 {[%clk 0:00:19]} 36. Ng6+ {[%clk 0:00:07]}  Kh7 {[%clk 0:00:17]} 37. Re6 {[%clk 0:00:07]}  Rd2+ {[%clk 0:00:16]} 38. Kh3 {[%clk 0:00:07]}  Rxe6 {[%clk 0:00:17]} 0-1


[Site "https://www.chess.com"]

[Event "Titled Tuesday Blitz March 08 Early 2022"]
[White "Golsta, Madara"]
[Black "Gheorghiu, Calin"]
[WhiteFideId "11607386"]
[BlackFideId "1200305"]
[WhiteElo "1997"]
[BlackElo "2168"]
[Result "1/2-1/2"]
[Round "02"]
[TimeControl "180+1"]
[Date "2022.03.09"]
[WhiteClock "0:00:03"]
[BlackClock "0:00:19"]

1. e4 {[%clk 0:02:57]}  e5 {[%clk 0:02:57]} 2. Nf3 {[%clk 0:02:57]}  Nc6 {[%clk 0:02:57]} 3. d4 {[%clk 0:02:56]}  exd4 {[%clk 0:02:56]} 4. Nxd4 {[%clk 0:02:56]}  Nf6 {[%clk 0:02:54]} 5. Nc3 {[%clk 0:02:55]}  Bb4 {[%clk 0:02:47]} 6. Nxc6 {[%clk 0:02:55]}  bxc6 {[%clk 0:02:47]} 7. Bd3 {[%clk 0:02:54]}  d5 {[%clk 0:02:43]} 8. exd5 {[%clk 0:02:54]}  O-O {[%clk 0:02:43]} 9. O-O {[%clk 0:02:52]}  cxd5 {[%clk 0:02:38]} 10. Bg5 {[%clk 0:02:43]}  Qd6 {[%clk 0:02:16]} 11. Ne2 {[%clk 0:02:39]}  Bg4 {[%clk 0:02:14]} 12. h3 {[%clk 0:02:35]}  Bh5 {[%clk 0:02:13]} 13. c3 {[%clk 0:02:31]}  Bc5 {[%clk 0:02:14]} 14. Qc2 {[%clk 0:02:27]}  Ne4 {[%clk 0:02:02]} 15. Bf4 {[%clk 0:01:53]}  Qb6 {[%clk 0:01:47]} 16. Bxe4 {[%clk 0:01:41]}  dxe4 {[%clk 0:01:43]} 17. Ng3 {[%clk 0:01:24]}  Bg6 {[%clk 0:01:40]} 18. Qb3 {[%clk 0:01:24]}  e3 {[%clk 0:01:36]} 19. fxe3 {[%clk 0:01:16]}  Bxe3+ {[%clk 0:01:36]} 20. Kh2 {[%clk 0:01:12]}  Bxf4 {[%clk 0:01:25]} 21. Rxf4 {[%clk 0:01:13]}  Rab8 {[%clk 0:01:24]} 22. Qxb6 {[%clk 0:01:05]}  axb6 {[%clk 0:01:25]} 23. Rd1 {[%clk 0:00:58]}  Rfd8 {[%clk 0:01:17]} 24. Rfd4 {[%clk 0:00:56]}  Rxd4 {[%clk 0:01:18]} 25. Rxd4 {[%clk 0:00:56]}  Kf8 {[%clk 0:01:18]} 26. Ne2 {[%clk 0:00:46]}  Ke7 {[%clk 0:01:17]} 27. Nf4 {[%clk 0:00:45]}  c6 {[%clk 0:01:18]} 28. h4 {[%clk 0:00:40]}  Bf5 {[%clk 0:01:16]} 29. Nh5 {[%clk 0:00:34]}  g6 {[%clk 0:01:12]} 30. Ng3 {[%clk 0:00:34]}  Be6 {[%clk 0:01:12]} 31. Ne4 {[%clk 0:00:33]}  Bxa2 {[%clk 0:01:10]} 32. Ra4 {[%clk 0:00:32]}  Be6 {[%clk 0:01:00]} 33. Ra7+ {[%clk 0:00:27]}  Kf8 {[%clk 0:01:00]} 34. Ng5 {[%clk 0:00:26]}  Bd5 {[%clk 0:00:56]} 35. Nxh7+ {[%clk 0:00:23]}  Kg7 {[%clk 0:00:57]} 36. Ng5 {[%clk 0:00:23]}  Re8 {[%clk 0:00:55]} 37. Ra4 {[%clk 0:00:06]}  Re2 {[%clk 0:00:53]} 38. c4 {[%clk 0:00:06]}  Bxg2 {[%clk 0:00:48]} 39. Kg3 {[%clk 0:00:04]}  Bf1 {[%clk 0:00:44]} 40. Ra7 {[%clk 0:00:03]}  Rxb2 {[%clk 0:00:39]} 41. Rxf7+ {[%clk 0:00:02]}  Kg8 {[%clk 0:00:40]} 42. Rc7 {[%clk 0:00:02]}  Bg2 {[%clk 0:00:33]} 43. Kf4 {[%clk 0:00:02]}  Rc2 {[%clk 0:00:32]} 44. Ke5 {[%clk 0:00:01]}  Rxc4 {[%clk 0:00:28]} 45. Kf6 {[%clk 0:00:02]}  Rf4+ {[%clk 0:00:29]} 46. Kxg6 {[%clk 0:00:02]}  Be4+ {[%clk 0:00:29]} 47. Kh6 {[%clk 0:00:01]}  b5 {[%clk 0:00:27]} 48. Rc8+ {[%clk 0:00:01]}  Rf8 {[%clk 0:00:26]} 49. Rc7 {[%clk 0:00:02]}  Re8 {[%clk 0:00:18]} 50. Rg7+ {[%clk 0:00:01]}  Kf8 {[%clk 0:00:19]} 51. Rf7+ {[%clk 0:00:01]}  Kg8 {[%clk 0:00:19]} 52. Rg7+ {[%clk 0:00:02]}  Kf8 {[%clk 0:00:19]} 53. Rf7+ {[%clk 0:00:02]}  Kg8 {[%clk 0:00:19]} 54. Rg7+ {[%clk 0:00:03]} 1/2-1/2


[Site "https://www.chess.com"]

[Event "Titled Tuesday Blitz March 08 Early 2022"]
[White "Goltsev, Dmitry"]
[Black "Paravyan, David"]
[WhiteFideId "24176710"]
[BlackFideId "4194985"]
[WhiteElo "2273"]
[BlackElo "2569"]
[Result "0-1"]
[Round "02"]
[TimeControl "180+1"]
[Date "2022.03.08"]
[WhiteClock "0:00:04"]
[BlackClock "0:00:28"]

1. e4 {[%clk 0:02:58]}  e5 {[%clk 0:02:59]} 2. Nf3 {[%clk 0:02:58]}  Nf6 {[%clk 0:03:00]} 3. Nxe5 {[%clk 0:02:58]}  d6 {[%clk 0:02:59]} 4. Nf3 {[%clk 0:02:57]}  Nxe4 {[%clk 0:03:00]} 5. d3 {[%clk 0:02:58]}  Nf6 {[%clk 0:02:59]} 6. d4 {[%clk 0:02:59]}  d5 {[%clk 0:02:59]} 7. Bd3 {[%clk 0:02:58]}  Bd6 {[%clk 0:02:59]} 8. O-O {[%clk 0:02:57]}  O-O {[%clk 0:02:59]} 9. Re1 {[%clk 0:02:56]}  Bg4 {[%clk 0:02:57]} 10. h3 {[%clk 0:02:55]}  Bh5 {[%clk 0:02:57]} 11. Bg5 {[%clk 0:02:55]}  Nbd7 {[%clk 0:02:56]} 12. c4 {[%clk 0:02:53]}  dxc4 {[%clk 0:02:55]} 13. Bxc4 {[%clk 0:02:54]}  c6 {[%clk 0:02:48]} 14. Nc3 {[%clk 0:02:51]}  Qa5 {[%clk 0:02:47]} 15. Bd2 {[%clk 0:02:42]}  Qb6 {[%clk 0:02:37]} 16. g4 {[%clk 0:02:10]}  Bg6 {[%clk 0:02:34]} 17. a3 {[%clk 0:01:52]}  Rae8 {[%clk 0:02:31]} 18. b4 {[%clk 0:01:48]}  Rxe1+ {[%clk 0:02:28]} 19. Qxe1 {[%clk 0:01:49]}  Re8 {[%clk 0:02:27]} 20. Be3 {[%clk 0:01:43]}  Qd8 {[%clk 0:02:23]} 21. Qd2 {[%clk 0:01:22]}  Nb6 {[%clk 0:02:22]} 22. Bb3 {[%clk 0:01:20]}  Nbd5 {[%clk 0:02:22]} 23. Nxd5 {[%clk 0:01:19]}  Nxd5 {[%clk 0:02:20]} 24. Bxd5 {[%clk 0:01:18]}  cxd5 {[%clk 0:02:20]} 25. Ne5 {[%clk 0:01:17]}  Be4 {[%clk 0:02:12]} 26. f3 {[%clk 0:01:13]}  Bg6 {[%clk 0:02:10]} 27. f4 {[%clk 0:01:12]}  Be4 {[%clk 0:02:10]} 28. Rc1 {[%clk 0:01:06]}  Qh4 {[%clk 0:01:44]} 29. Kh2 {[%clk 0:01:03]}  f6 {[%clk 0:01:42]} 30. Bf2 {[%clk 0:00:56]}  Qh6 {[%clk 0:01:42]} 31. g5 {[%clk 0:00:53]}  fxg5 {[%clk 0:01:42]} 32. fxg5 {[%clk 0:00:54]}  Qh5 {[%clk 0:01:42]} 33. Bg3 {[%clk 0:00:51]}  Rf8 {[%clk 0:01:41]} 34. Re1 {[%clk 0:00:46]}  Bxe5 {[%clk 0:01:27]} 35. Bxe5 {[%clk 0:00:37]}  Qf3 {[%clk 0:01:27]} 36. Rc1 {[%clk 0:00:28]}  b5 {[%clk 0:00:49]} 37. Bd6 {[%clk 0:00:06]}  Rd8 {[%clk 0:00:49]} 38. Be5 {[%clk 0:00:07]}  Rd7 {[%clk 0:00:39]} 39. Rc8+ {[%clk 0:00:05]}  Kf7 {[%clk 0:00:39]} 40. Qf4+ {[%clk 0:00:06]}  Qxf4+ {[%clk 0:00:33]} 41. Bxf4 {[%clk 0:00:07]}  Kg6 {[%clk 0:00:34]} 42. Rc7 {[%clk 0:00:06]}  Rxc7 {[%clk 0:00:32]} 43. Bxc7 {[%clk 0:00:07]}  Kxg5 {[%clk 0:00:33]} 44. Kg3 {[%clk 0:00:08]}  Kf5 {[%clk 0:00:32]} 45. Be5 {[%clk 0:00:07]}  g5 {[%clk 0:00:31]} 46. h4 {[%clk 0:00:06]}  gxh4+ {[%clk 0:00:28]} 47. Kxh4 {[%clk 0:00:07]}  Bf3 {[%clk 0:00:29]} 48. Kg3 {[%clk 0:00:07]}  Ke4 {[%clk 0:00:30]} 49. Bd6 {[%clk 0:00:08]}  Bh5 {[%clk 0:00:28]} 50. Bc5 {[%clk 0:00:07]}  a6 {[%clk 0:00:29]} 51. Bb6 {[%clk 0:00:07]}  Kd3 {[%clk 0:00:28]} 52. Kh4 {[%clk 0:00:06]}  Bf3 {[%clk 0:00:27]} 53. Kg3 {[%clk 0:00:04]}  Be4 {[%clk 0:00:27]} 54. Kf4 {[%clk 0:00:04]}  Kc4 {[%clk 0:00:27]} 55. Ke5 {[%clk 0:00:04]}  Kb3 {[%clk 0:00:28]} 56. Bc7 {[%clk 0:00:02]}  Kxa3 {[%clk 0:00:28]} 57. Ba5 {[%clk 0:00:03]}  Kb3 {[%clk 0:00:28]} 58. Kf4 {[%clk 0:00:03]}  Kc4 {[%clk 0:00:28]} 59. Ke5 {[%clk 0:00:04]}  h5 {[%clk 0:00:28]} 0-1


[Site "https://www.chess.com"]

[Event "Titled Tuesday Blitz March 08 Early 2022"]
[White "Goltseva, Ekaterina"]
[Black "Matlakov, Maxim"]
[WhiteFideId "24173770"]
[BlackFideId "4168003"]
[WhiteElo "2140"]
[BlackElo "2669"]
[Result "0-1"]
[Round "02"]
[TimeControl "180+1"]
[Date "2022.03.08"]
[WhiteClock "0:00:01"]
[BlackClock "0:00:39"]

1. d4 {[%clk 0:03:00]}  Nf6 {[%clk 0:02:58]} 2. c4 {[%clk 0:03:01]}  e6 {[%clk 0:02:57]} 3. Nc3 {[%clk 0:03:00]}  d5 {[%clk 0:02:57]} 4. cxd5 {[%clk 0:03:00]}  exd5 {[%clk 0:02:58]} 5. Bg5 {[%clk 0:03:00]}  Bb4 {[%clk 0:02:51]} 6. Qa4+ {[%clk 0:02:36]}  Nc6 {[%clk 0:02:50]} 7. e3 {[%clk 0:02:36]}  h6 {[%clk 0:02:44]} 8. Bxf6 {[%clk 0:02:30]}  Qxf6 {[%clk 0:02:44]} 9. Nf3 {[%clk 0:02:29]}  O-O {[%clk 0:02:43]} 10. Be2 {[%clk 0:02:25]}  Be6 {[%clk 0:02:38]} 11. O-O {[%clk 0:02:20]}  a6 {[%clk 0:02:38]} 12. Qb3 {[%clk 0:02:12]}  Bd6 {[%clk 0:02:37]} 13. Nxd5 {[%clk 0:01:44]}  Qf5 {[%clk 0:02:28]} 14. e4 {[%clk 0:01:28]}  Qxe4 {[%clk 0:02:27]} 15. Nc3 {[%clk 0:01:29]}  Nxd4 {[%clk 0:01:18]} 16. Nxe4 {[%clk 0:00:58]}  Nxe2+ {[%clk 0:01:17]} 17. Kh1 {[%clk 0:00:57]}  Bxb3 {[%clk 0:01:18]} 18. axb3 {[%clk 0:00:57]}  Bb4 {[%clk 0:01:16]} 19. Rfd1 {[%clk 0:00:41]}  Rfe8 {[%clk 0:01:15]} 20. Ned2 {[%clk 0:00:28]}  Rad8 {[%clk 0:01:11]} 21. Nc4 {[%clk 0:00:27]}  Nf4 {[%clk 0:01:11]} 22. g3 {[%clk 0:00:18]}  Nd3 {[%clk 0:01:10]} 23. Kg2 {[%clk 0:00:11]}  b5 {[%clk 0:01:00]} 24. Nce5 {[%clk 0:00:09]}  Nxe5 {[%clk 0:00:53]} 25. Rxd8 {[%clk 0:00:09]}  Rxd8 {[%clk 0:00:53]} 26. Nxe5 {[%clk 0:00:09]}  Rd6 {[%clk 0:00:50]} 27. Rc1 {[%clk 0:00:07]}  c5 {[%clk 0:00:49]} 28. Rc2 {[%clk 0:00:04]}  f6 {[%clk 0:00:47]} 29. Ng4 {[%clk 0:00:03]}  Rd3 {[%clk 0:00:46]} 30. Ne3 {[%clk 0:00:02]}  Rxb3 {[%clk 0:00:46]} 31. Nd5 {[%clk 0:00:03]}  c4 {[%clk 0:00:46]} 32. f4 {[%clk 0:00:02]}  a5 {[%clk 0:00:42]} 33. Nc7 {[%clk 0:00:02]}  Bd6 {[%clk 0:00:41]} 34. Nd5 {[%clk 0:00:01]}  Bc5 {[%clk 0:00:40]} 35. Nc7 {[%clk 0:00:01]}  Bd4 {[%clk 0:00:39]} 0-1


[Site "https://www.chess.com"]

[Event "Titled Tuesday Blitz March 08 Early 2022"]
[White "Gracia Alvarez, Gerardo Antonio"]
[Black "Samaganova, Aleksandra"]
[WhiteFideId "5109124"]
[BlackFideId "13800221"]
[WhiteElo "2139"]
[BlackElo "1859"]
[Result "1-0"]
[Round "02"]
[TimeControl "180+1"]
[Date "2022.03.09"]
[WhiteClock "0:00:13"]
[BlackClock "0:00:10"]

1. e4 {[%clk 0:02:47]}  c5 {[%clk 0:02:59]} 2. Nc3 {[%clk 0:02:46]}  e6 {[%clk 0:02:58]} 3. d4 {[%clk 0:02:46]}  cxd4 {[%clk 0:02:56]} 4. Qxd4 {[%clk 0:02:47]}  Nc6 {[%clk 0:02:56]} 5. Qe3 {[%clk 0:02:46]}  Nf6 {[%clk 0:02:57]} 6. Nf3 {[%clk 0:02:34]}  Bb4 {[%clk 0:02:57]} 7. Bd2 {[%clk 0:02:32]}  O-O {[%clk 0:02:50]} 8. O-O-O {[%clk 0:02:29]}  d5 {[%clk 0:02:47]} 9. exd5 {[%clk 0:02:27]}  exd5 {[%clk 0:02:48]} 10. Qf4 {[%clk 0:02:15]}  Bg4 {[%clk 0:02:28]} 11. Bd3 {[%clk 0:02:09]}  d4 {[%clk 0:02:18]} 12. Ne4 {[%clk 0:02:05]}  Bxd2+ {[%clk 0:02:13]} 13. Rxd2 {[%clk 0:02:04]}  Nxe4 {[%clk 0:02:05]} 14. Bxe4 {[%clk 0:01:46]}  Bxf3 {[%clk 0:02:01]} 15. Bxf3 {[%clk 0:01:42]}  Qa5 {[%clk 0:01:55]} 16. a3 {[%clk 0:01:26]}  Rfe8 {[%clk 0:01:30]} 17. Rhd1 {[%clk 0:01:25]}  Rac8 {[%clk 0:01:22]} 18. Kb1 {[%clk 0:01:19]}  Ne5 {[%clk 0:01:04]} 19. Rxd4 {[%clk 0:01:17]}  Ng6 {[%clk 0:00:46]} 20. Qd2 {[%clk 0:01:13]}  Qa6 {[%clk 0:00:37]} 21. Rd7 {[%clk 0:01:06]}  Rb8 {[%clk 0:00:30]} 22. Rd6 {[%clk 0:00:48]}  Qb5 {[%clk 0:00:26]} 23. Bd5 {[%clk 0:00:46]}  Ne5 {[%clk 0:00:23]} 24. Qf4 {[%clk 0:00:41]}  Qc5 {[%clk 0:00:15]} 25. Bb3 {[%clk 0:00:39]}  Rbc8 {[%clk 0:00:15]} 26. R6d5 {[%clk 0:00:33]}  Qe7 {[%clk 0:00:13]} 27. Re1 {[%clk 0:00:31]}  Qc7 {[%clk 0:00:06]} 28. Rdxe5 {[%clk 0:00:28]}  Rxe5 {[%clk 0:00:06]} 29. Qxe5 {[%clk 0:00:27]}  Qxe5 {[%clk 0:00:06]} 30. Rxe5 {[%clk 0:00:27]}  Kf8 {[%clk 0:00:06]} 31. Rd5 {[%clk 0:00:26]}  Rc7 {[%clk 0:00:05]} 32. Rd8+ {[%clk 0:00:25]}  Ke7 {[%clk 0:00:05]} 33. Rh8 {[%clk 0:00:26]}  h6 {[%clk 0:00:06]} 34. Kc1 {[%clk 0:00:26]}  Kf6 {[%clk 0:00:05]} 35. Rd8 {[%clk 0:00:23]}  Re7 {[%clk 0:00:05]} 36. Kd2 {[%clk 0:00:23]}  Rc7 {[%clk 0:00:05]} 37. Rd6+ {[%clk 0:00:23]}  Ke5 {[%clk 0:00:04]} 38. Rd3 {[%clk 0:00:24]}  Kf6 {[%clk 0:00:04]} 39. f4 {[%clk 0:00:23]}  g6 {[%clk 0:00:04]} 40. g4 {[%clk 0:00:23]}  g5 {[%clk 0:00:05]} 41. fxg5+ {[%clk 0:00:21]}  hxg5 {[%clk 0:00:05]} 42. Rf3+ {[%clk 0:00:21]}  Kg7 {[%clk 0:00:06]} 43. h3 {[%clk 0:00:21]}  b6 {[%clk 0:00:06]} 44. Bd5 {[%clk 0:00:21]}  Rd7 {[%clk 0:00:06]} 45. c4 {[%clk 0:00:21]}  b5 {[%clk 0:00:06]} 46. b3 {[%clk 0:00:20]}  a5 {[%clk 0:00:07]} 47. Kc3 {[%clk 0:00:20]}  a4 {[%clk 0:00:07]} 48. bxa4 {[%clk 0:00:19]}  bxa4 {[%clk 0:00:07]} 49. Kd4 {[%clk 0:00:19]}  f6 {[%clk 0:00:07]} 50. c5 {[%clk 0:00:19]}  Kg6 {[%clk 0:00:05]} 51. c6 {[%clk 0:00:19]}  Rc7 {[%clk 0:00:06]} 52. Kc5 {[%clk 0:00:19]}  Re7 {[%clk 0:00:06]} 53. Kd6 {[%clk 0:00:18]}  Re1 {[%clk 0:00:07]} 54. c7 {[%clk 0:00:18]}  Rc1 {[%clk 0:00:07]} 55. Bc6 {[%clk 0:00:16]}  Rd1+ {[%clk 0:00:07]} 56. Ke7 {[%clk 0:00:17]}  Re1+ {[%clk 0:00:07]} 57. Kd8 {[%clk 0:00:17]}  Rd1+ {[%clk 0:00:07]} 58. Bd7 {[%clk 0:00:18]}  Rc1 {[%clk 0:00:07]} 59. c8=Q {[%clk 0:00:17]}  Rxc8+ {[%clk 0:00:07]} 60. Bxc8 {[%clk 0:00:18]}  f5 {[%clk 0:00:08]} 61. Bxf5+ {[%clk 0:00:17]}  Kf6 {[%clk 0:00:08]} 62. Bc2+ {[%clk 0:00:18]}  Ke5 {[%clk 0:00:09]} 63. Rf5+ {[%clk 0:00:17]}  Kd4 {[%clk 0:00:08]} 64. Rxg5 {[%clk 0:00:17]}  Kc3 {[%clk 0:00:08]} 65. Bxa4 {[%clk 0:00:16]}  Kb2 {[%clk 0:00:09]} 66. h4 {[%clk 0:00:13]}  Ka1 {[%clk 0:00:10]} 67. h5 {[%clk 0:00:13]} 1-0


[Site "https://www.chess.com"]